{"text_format":"1","workbook":"xlsx","n_sheets":3,"sheets":["Start","GuV_01","GuV_02"],"not_rendered":{"charts":0,"images":28,"macros":1,"external_links":0,"defined_names":106,"comments":0,"pivot_tables":0},"unopened":[],"bounds":{"document_bytes":16777216,"sheet_cells":100000,"rows_first":2000,"rows_last":500,"rows_between":2000,"halvings":0,"cell_chars":16384,"cell_head_chars":4096},"cells_cut":0,"cells_raw":0,"read":"whole","date_system":"1900"}

{"sheet":"Start","index":0,"n_rows":17,"n_cols":31,"rows_kept":17,"cut":false,"hidden":false,"merged":[]}
[null,null,null,null,null,null,null,null,null,null,null,null,null,null,null,null,null,null,null,null,null,null,null,null,null,null,null,null,null,0,"Start"]
[null,null,null,null,null,null,null,"Modul 03 : BWL - Grundbegriffe",null,null,null,null,null,null,null,null,null,null,null,null,null,null,null,null,null,null,null,null,null,{"$f":"AD1+1","v":1},"01_Gruendungsphasen"]
[null,null,null,null,null,null,null,null,null,null,null,null,null,null,null,null,null,null,null,null,null,null,null,null,null,null,null,null,null,{"$f":"AD2+1","v":2},"02_Geschaeftsidee"]
[null,null,null,null,null,null,null,null,null,null,null,null,"Zu dieser Datei:",null,null,null,null,null,null,null,null,null,null,null,null,null,null,null,null,3,"03_Entscheidungen"]
[null,null,null,null,null,null,null,null,null,null,null,null,"In § 242 Abs. 2, 3 HGB wird bestimmt, dass der Kaufmann \"für den Schluß eines jeden Geschäfts-",null,null,null,null,null,null,null,null,null,null,null,null,null,null,null,null,4,"04_Standort"]
[null,null,null,null,null,null,null,null,null,null,null,null,"jahres eine Gegenüberstellung der Aufwendungen und Erträge des Geschäftsjahres (Gewinn- ",null,null,null,null,null,null,null,null,null,null,null,null,null,null,null,null,5,"05_Rechtsform"]
[null,null,null,null,null,null,null,null,null,null,null,null,"und Verlustrechnung) aufzustellen\" hat.",null,null,null,null,null,null,null,null,null,null,null,null,null,null,null,null,6,"06_Startfinanzierung"]
[null,null,null,null,null,null,null,null,null,null,null,null,"Diese Rechnung ist in Staffelform auszuführen , entweder nach dem Gesamtkostenverfahren",null,null,null,null,null,null,null,null,null,null,null,null,null,null,null,null,7,"07_Businessplan"]
[null,null,null,null,null,null,null,null,null,null,null,null,"oder dem Umsatzkostenverfahren[§ 275 Abs. 1 HGB].",null,null,null,null,null,null,null,null,null,null,null,null,null,null,null,null,8,"08_BWL_Grundbegriffe"]
[null,null,null,null,null,null,null,null,null,null,null,null,"Das Gesamtkostenverfahren (GKV) ist eine Produktions-Aufwands-Rechnung, während das",null,null,null,null,null,null,null,null,null,null,null,null,null,null,null,null,9,"09_Entscheidungstest 1"]
[null,null,null,null,null,null,null,null,null,null,null,null,"Umsatzkostenverfahren (UKV) eine Absatz-Aufwands-Rechnung darstellt. "]
[null,null,null,null,null,null,null,null,null,null,null,null,"Beide Verfahren unterscheiden sich nur im Teil \"Ermittlung des Betriebsergebnisses\"."]
[]
[null,null,null,null,null,null,null,null,null,null,null,null,"In diesem Test geht es darum, zu zeigen, dass beide Verfahren - bei unterschiedlicher Vorgehens-"]
[null,null,null,null,null,null,null,null,null,null,null,null,"weise - dennoch zum gleichen Betrag des Betriebsergebnisses führen."]
[null,null,null,null,null,null,null,null,null,null,null,null,"Auch wenn das hierzu angebotene Fallbeispiel nur wenige Daten enthält, setzt die Lösung der"]
[null,null,null,null,null,null,null,null,null,null,null,null,"genaue Kenntnis des Vorgehens in beden Verfahren voraus."]

{"sheet":"GuV_01","index":1,"n_rows":42,"n_cols":17,"rows_kept":42,"cut":false,"hidden":false,"merged":[[40,8,40,9],[41,8,41,9],[27,3,27,4],[28,3,28,4],[29,3,29,4],[30,3,30,4],[32,3,32,4],[36,3,36,4],[37,3,37,4],[38,3,38,4],[39,3,39,4],[40,3,40,4],[41,3,41,4],[31,3,31,4],[32,8,32,9],[36,8,36,9],[37,8,37,9],[38,8,38,9],[39,8,39,9],[27,8,27,9],[28,8,28,9],[29,8,29,9],[30,8,30,9],[31,8,31,9],[20,3,20,4],[21,3,21,4],[22,3,22,4],[23,3,23,4],[14,3,14,4],[15,3,15,4],[16,3,16,4],[17,3,17,4],[18,3,18,4],[19,3,19,4]]}
[]
[]
[null,null,"Wissenstest Erfolgsrechnung (GKV, UKV)"]
[]
[null,null,"Die handelsrechtliche Erfolgsermittlung (Gewinn- und Verlustrechnung) kann gem. § 275 HGB entweder nach dem Gesamtkostenverfahren (GKV)",null,null,null,null,null,null,null,null,null,null,null,null,null," "]
[null,null,"oder  nach dem Umsatzkostenverfahren (UKV) durchgeführt werden."]
[null,null,"In diesem Wissenstest soll nun nachgewiesen werden, dass die Ermittlung des Betriebsergebnisses stets zum gleichen Resultat führt, obgleich "]
[null,null,"die Vorgehensweise der beiden Verfahren recht unterschiedlich ist."]
[null,null,"Können Sie diesen Beweis anhand des folgenden Beispiels rechnerisch ausführen?"]
[]
[null,null,"1. Ausgangsdaten, Geschäftsjahr Gj. 01"]
[null,null,{"$f":"CONCATENATE(\"Zum 1. Geschäftsjahr (\"& YEAR(NOW())-2  & \") liegen von der Fa. X GmbH folgende Daten vor:\")","v":"Zum 1. Geschäftsjahr (2019) liegen von der Fa. X GmbH folgende Daten vor:"}]
[]
[null,null,"Nr.","Position",null,"Betrag","Maßeinheit",null,null,"Aufgabe:"]
[null,null,1,"Im Geschäftsjahr hergestellte Menge von Produkt P ",null,2,"Stck.",null,null,"Ermitteln Sie aus diesen Angaben das Betriebsergebnis,"]
[null,null,2,"davon wurden im gleichen Jahr verkauft",null,1,"Stck.",null,null,"und zwar a) nach dem Gesamtkostenverfahren und "]
[null,null,3,"Verkaufspreis Produkt P",null,500,"TEUR",null,null,"b) nach dem Umsatzkostenverfahren."]
[null,null,4,"Aufwand  je  1 ME von Produkt P",null,null,null,null,null,"Nutzen Sie die unten stehenden Tabellen. "]
[null,null,"4a","   Material",null,160,"TEUR/Stck.",null,null,"Beachten Sie: Die Aufgabe wird fortgesetzt!"]
[null,null,"4b","   Löhne",null,140,"TEUR/Stck."]
[null,null,5,"Das Unternehmen beschäftigt",null,null,null,null,null,"Klicken Sie den Button \"Start\" an!"]
[null,null,"5a","    einen Buchhalter, Jahresgehalt",null,70,"TEUR"]
[null,null,"5b","    einen Verkäufer, Jahresgehalt",null,80,"TEUR"]
[null,null,6,"Anfangsbestand an Fertigerzeugnissen",null,0,"Stck."]
[]
[null,null,"Arbeitstabelle: Gesamtkostenverfahren:",null,null,null,null,"Musterlösung: Gesamtkostenverfahren:"]
[null,null,"Nr.","Position",null,"Betrag [TEUR]",null,"Nr.","Position",null,"Betrag [TEUR]"]
[null,null,1,null,null,null,null,1]
[null,null,2,null,null,null,null,2]
[null,null,{"$f":"C29+1","v":3},null,null,null,null,{"$f":"H29+1","v":3}]
[null,null,4,null,null,null,null,{"$f":"H30+1","v":4}]
[null,null,5,null,null,null,null,{"$f":"H31+1","v":5}]
[null,null,6,null,null,null,null,{"$f":"H32+1","v":6}]
[]
[null,null,"Arbeitstabelle: Umsatzkostenverfahren:",null,null,null,null,"Musterlösung: Umsatzkostenverfahren:"]
[null,null,"Nr.","Position",null,"Betrag [TEUR]",null,"Nr.","Position",null,"Betrag [TEUR]"]
[null,null,1,null,null,null,null,1]
[null,null,2,null,null,null,null,2]
[null,null,{"$f":"C38+1","v":3},null,null,null,null,{"$f":"H38+1","v":3}]
[null,null,4,null,null,null,null,{"$f":"H39+1","v":4}]
[null,null,5,null,null,null,null,{"$f":"H40+1","v":5}]
[null,null,6,null,null,null,null,{"$f":"H41+1","v":6}]

{"sheet":"GuV_02","index":2,"n_rows":45,"n_cols":17,"rows_kept":45,"cut":false,"hidden":false,"merged":[[43,8,43,9],[33,3,33,4],[42,3,42,4],[42,8,42,9],[44,3,44,4],[44,8,44,9],[43,3,43,4],[39,3,39,4],[39,8,39,9],[40,3,40,4],[40,8,40,9],[41,3,41,4],[41,8,41,9],[34,3,34,4],[34,8,34,9],[38,3,38,4],[17,2,18,2],[17,3,18,4],[17,5,18,5],[17,6,18,6],[33,8,33,9],[32,3,32,4],[32,8,32,9],[21,3,21,4],[22,3,22,4],[23,3,23,4],[28,3,28,4],[28,8,28,9],[38,8,38,9],[29,3,29,4],[29,8,29,9],[30,3,30,4],[30,8,30,9],[31,3,31,4],[31,8,31,9],[14,3,14,4],[15,3,15,4],[16,3,16,4],[19,3,19,4],[20,3,20,4]]}
[]
[]
[null,null,"Wissenstest Erfolgsrechnung (GKV, UKV)"]
[]
[null,null,"Die handelsrechtliche Erfolgsermittlung (Gewinn- und Verlustrechnung) kann gem. § 275 HGB entweder nach dem Gesamtkostenverfahren (GKV)",null,null,null,null,null,null,null,null,null,null,null,null,null," "]
[null,null,"oder  nach dem Umsatzkostenverfahren (UKV) durchgeführt werden."]
[null,null,"In diesem Wissenstest soll nun nachgewiesen werden, dass die Ermittlung des Betriebsergebnisses stets zum gleichen Resultat führt, obgleich "]
[null,null,"die Vorgehensweise der beiden Verfahren recht unterschiedlich ist."]
[null,null,"Können Sie diesen Beweis anhand des folgenden Beispiels rechnerisch ausführen?"]
[]
[null,null,"2. Ausgangsdaten, Geschäftsjahr Gj. 02"]
[null,null,{"$f":"CONCATENATE(\"Zum 2. Geschäftsjahr (\"& YEAR(NOW())-1  & \") liegen von der Fa. X GmbH folgende Daten vor:\")","v":"Zum 2. Geschäftsjahr (2020) liegen von der Fa. X GmbH folgende Daten vor:"}]
[]
[null,null,"Nr.","Position",null,"Betrag","Maßeinheit",null,null,"Aufgabe:"]
[null,null,1,"Im Geschäftsjahr hergestellte Menge von Produkt P ",null,0,"Stck.",null,null,"Ermitteln Sie aus diesen Angaben das Betriebsergebnis,"]
[null,null,2,"davon wurden im gleichen Jahr verkauft",null,1,"Stck.",null,null,"und zwar a) nach dem Gesamtkostenverfahren und "]
[null,null,3,"Verkaufspreis Produkt P",null,460,"TEUR",null,null,"b) nach dem Umsatzkostenverfahren."]
[null,null,4,"In Eigenleistung wird eine Zusatzvorrichtung für eine Maschine hergestellt.  Aufwendungen:",null,null,null,null,null,"Nutzen Sie die unten stehenden Tabellen. "]
[]
[null,null,"4a","aktivierbare Löhne",null,200,"TEUR"]
[null,null,"4b","nicht aktivierbare Personalaufwendungen",null,50,"TEUR"]
[null,null,5,"Das Unternehmen beschäftigt weiterhin"]
[null,null,"5a","    einen Buchhalter, Jahresgehalt",null,70,"TEUR"]
[null,null,"5b","    einen Verkäufer, Jahresgehalt",null,80,"TEUR"]
[]
[]
[null,null,"Arbeitstabelle: Gesamtkostenverfahren:",null,null,null,null,"Musterlösung: Gesamtkostenverfahren:"]
[null,null,"Nr.","Position",null,"Betrag [TEUR]",null,"Nr.","Position",null,"Betrag [TEUR]"]
[null,null,1,null,null,null,null,1]
[null,null,2,null,null,null,null,2]
[null,null,{"$f":"C30+1","v":3},null,null,null,null,{"$f":"H30+1","v":3}]
[null,null,4,null,null,null,null,{"$f":"H31+1","v":4}]
[null,null,5,null,null,null,null,{"$f":"H32+1","v":5}]
[null,null,6,null,null,null,null,6]
[null,null,7,null,null,null,null,7]
[]
[null,null,"Arbeitstabelle: Umsatzkostenverfahren:",null,null,null,null,"Musterlösung: Umsatzkostenverfahren:"]
[null,null,"Nr.","Position",null,"Betrag [TEUR]",null,"Nr.","Position",null,"Betrag [TEUR]"]
[null,null,1,null,null,null,null,1]
[null,null,2,null,null,null,null,2]
[null,null,{"$f":"C40+1","v":3},null,null,null,null,{"$f":"H40+1","v":3}]
[null,null,4,null,null,null,null,{"$f":"H41+1","v":4}]
[null,null,5,null,null,null,null,{"$f":"H42+1","v":5}]
[null,null,6,null,null,null,null,6]
[null,null,7,null,null,null,null,7]